Cogmind - Beta 15 @@@ ROGUE MODE // 2025.07.11 @ 14:33:10 Player: Dingot Result: Destroyed by G-47 Trooper with Particle Gun Performance ------------- Evolutions (0) 0 Regions Visited (1) 200 Robots Destroyed (14) 70 Value Destroyed (386) 386 Prototype IDs (0) 0 Alien Tech Used (0) 0 Bonus (0) 0 TOTAL SCORE: 656 Bonus ------- None Cogmind --------- Core Integrity 0/250 Matter 296/300 Energy 125/125 System Corruption 4% Temperature Cool (9) Movement Core (750) Ox14 Location -10/Materials Parts ------- > --- POWER (1) -------- Light Ion Engine > --- PROPULSION (2) --- (None) > --- UTILITY (2) ------ High-capacity Storage Unit Transport Network Coupler > --- WEAPON (2) ------- (None) > --- INVENTORY (20) --- Light Treads Light Treads Hacking Suite Hacking Suite Peak State ------------ > --- POWER ------------ Light Ion Engine > --- PROPULSION ------- Light Treads Light Treads > --- UTILITY ---------- High-capacity Storage Unit Transport Network Coupler > --- WEAPON ----------- EM Pulse Gun Light Assault Rifle > --- INVENTORY -------- Light Treads Hacking Suite Hacking Suite [Rating: 7] Favorites ----------- Power Light Ion Engine Engine Light Ion Engine Propulsion Light Treads Treads Light Treads Utility High-capacity Storage Unit Storage High-capacity Storage Unit Processor Transport Network Coupler Weapon EM Pulse Gun Energy Gun EM Pulse Gun Ballistic Gun Light Assault Rifle Build | -11 -10 ------- Run | Yrd Mat Slots Evolved . | . . Power . | . . Propulsion . | . . Utility . | . . Weapon . | . . Parts Attached 10 | 5 5 Power 2 | 1 1 Engine 2 | 1 1 Core . | . . Reactor . | . . Propulsion 3 | 2 1 Treads 3 | 2 1 Leg . | . . Wheel . | . . Hover . | . . Flight . | . . Utility 2 | . 2 Device . | . . Storage 1 | . 1 Processor 1 | . 1 Hackware . | . . Protection . | . . Artifact . | . . Weapon 3 | 2 1 Energy Gun 2 | 2 . Energy Cannon . | . . Ballistic Gun 1 | . 1 Ballistic Cannon . | . . Launcher . | . . Special Weapon . | . . Impact Weapon . | . . Slashing Weapon . | . . Piercing Weapon . | . . Special Melee Weapon . | . . Unidentified Prototypes . | . . Parts Lost 6 | . 6 Power 1 | . 1 Propulsion 2 | . 2 Utility . | . . Weapon 3 | . 3 Highest Loss Streak 4 | . 4 To Critical Strikes . | . . Average Backups 2 | . 2 Power . | . . Propulsion . | . . Utility 1 | . 1 Weapon . | . . Tool/Special . | . . Unused Backups 2 | . 2 Power . | . . Propulsion . | . . Utility 2 | . 2 Weapon . | . . Tool/Special . | . . Average Slot Usage (%) 67 | . 67 Engine 7 | . 7 Treads 27 | . 27 Storage 4 | . 4 Processor 1 | . 1 Energy Gun 13 | . 13 Ballistic Gun 12 | . 12 Peak Build Rating 7 | 5 7 Average Rating 4 | 3 4 On Entrance 2 | . 5 Naked Turns . | . . Heaviest Build 46 | 9 46 Greatest Support 40 | 40 40 Greatest Overweight (x) 14 | . 14 Average Overweight (x) . | . . Largest Inventory Capacity 20 | 5 20 Average Capacity 9 | 5 9 Most Carried 5 | 5 5 Average Carried 2 | . 2 Final Capacity 20 | 5 20 Final Carried 4 | . 4 Class Distribution -------------------- 100% | Mutant Dominant Class ---------------- Mutant | -10/Materials Resources | -11 -10 ----------- Run | Yrd Mat Matter Collected 387 | 226 161 Remotely . | . . Salvage Created 528 | . 528 Parts 36 | . 36 Haulers Intercepted 2 | . 2 Recyclers Shooed . | . . Parts Field Recycled . | . . Retrieved Matter . | . . Parts Self-Destructed . | . . Prevented . | . . Kills | -11 -10 ------- Run | Yrd Mat Combat Hostiles Destroyed 9 | . 9 Guns 7 | . 7 AOE 2 | . 2 Classes Destroyed 4 | . 4 Worker 1 | . 1 Hauler 2 | . 2 Operator 2 | . 2 Grunt 9 | . 9 Best Kill Streak 3 | . 3 Combat Bots Only 2 | . 2 Max Kills in Single Turn 2 | . 2 Gunslinging . | . . Exploded 2 | . 2 Melee . | . . Uniques/NPCs Destroyed . | . . Combat | -11 -10 -------- Run | Yrd Mat Hostile Shots Fired 97 | . 97 Missed 31 | . 31 Hits 66 | . 66 Projectile 66 | . 66 Damage Taken 937 | . 937 Core 251 | . 251 Absorbed by Shields . | . . Core Remaining (%) 100 | 100 . Volleys Fired 63 | . 63 Largest 2 | . 2 Hottest 80 | . 80 Shots Fired 92 | . 92 Gun 92 | . 92 Cannon . | . . Launcher . | . . Special . | . . Kinetic 58 | . 58 Thermal . | . . Explosive . | . . Electromagnetic 34 | . 34 Robot Hit Streak 9 | . 9 Robot Miss Streak 4 | . 4 Penetration Max . | . . Secondary Targets 2 | . 2 Max Gunslinging Chain 1 | . 1 Shots Hit Robots 56 | . 56 Core Hits 26 | . 26 Critical Kills . | . . Critical Parts Destroyed . | . . Critical Strikes . | . . Melee Attacks . | . . Impact . | . . Slashing . | . . Piercing . | . . Sneak Attacks . | . . Combat Hostiles . | . . Follow-up Attacks . | . . Damage Inflicted 869 | . 869 Guns 595 | . 595 Cannons . | . . Explosions 274 | . 274 Melee . | . . Ramming . | . . Kinetic 285 | . 285 Thermal 274 | . 274 Explosive . | . . Electromagnetic 310 | . 310 Impact . | . . Slashing . | . . Piercing . | . . Highest Corruption 4 | . 4 Average Corruption 3 | . 3 Corruption Purged . | . . Corruption Blocked . | . . Effects 11 | . 11 Message Errors 2 | . 2 Matter Fused 2 | . 2 Heat Flow Errors 2 | . 2 Energy Discharges 1 | . 1 Data Loss (minor) 1 | . 1 Data Loss (major) 1 | . 1 Misfires 1 | . 1 Weapon Failures 1 | . 1 Overload Shots . | . . Overflow Damage 38 | . 38 Projectiles . | . . Explosions 38 | . 38 Melee . | . . Knockbacks . | . . Impact . | . . Kinetic . | . . Secondary . | . . Self-Inflicted Damage 134 | . 134 Shots 2 | . 2 Rammed . | . . Targets Rammed . | . . Kicked . | . . Crushed . | . . Highest Temperature 276 | . 276 Average Temperature 46 | . 46 Received Heat Transfer 447 | . 447 Siege Activations . | . . Martial Activations . | . . Shielding Activations . | . . Robots Disrupted . | . . Combat Hostiles . | . . Robots Corrupted . | . . Combat Hostiles . | . . Parts Fried . | . . Impact Corruptions . | . . Robots Melted . | . . Combat Hostiles . | . . Parts Melted . | . . Heat Transferred 200 | . 200 Parts Sabotaged . | . . Parts Stolen . | . . Parts Stripped . | . . Power Chain Reactions 2 | . 2 Alert | -11 -10 ------- Run | Yrd Mat Maximum Alert Level . | . . Low Security (%) 100 | 100 100 Level 1 . | . . Level 2 . | . . Level 3 . | . . Level 4 . | . . Level 5 . | . . High Security . | . . Max Security . | . . Peak Influence 126 | . 126 Initial . | . . Average 42 | . 45 Influence Increases 331 | . 331 Destroy 0b10 Robot/C 180 | . 180 Destroy 0b10 Robot/NC 25 | . 25 Destroy Leader 44 | . 44 Successful Hack 6 | . 6 Disable Machine 45 | . 45 Destroy Structure 31 | . 31 Influence Decreases 331 | . 331 Time Decay 277 | . 277 Lost Part 54 | . 54 Squads Dispatched 3 | . 3 Investigation . | . . Extermination . | . . Reinforcement 3 | . 3 Assault . | . . Garrison . | . . Intercept . | . . Searches Triggered . | . . Construction Impeded . | . . Haulers Reinforced . | . . Active Scanning Responses . | . . Cargo Convoy Interrupts . | . . Stealth | -11 -10 --------- Run | Yrd Mat Distress Signals 2 | . 2 Communications Jammed . | . . Distress Signals . | . . Times Spotted 26 | . 26 Peak Tracking Total 4 | . 4 Tactical Retreats . | . . Traps | -11 -10 ------- Run | Yrd Mat Traps Triggered 2 | . 2 Indirectly . | . . Trap Hack Attempts . | . . Triggered . | . . Disarmed . | . . Reprogrammed . | . . Reused . | . . Traps Extracted . | . . Installed . | . . Triggered . | . . Machines | -11 -10 ---------- Run | Yrd Mat Machines Disabled 3 | . 3 Max in Single Turn 2 | . 2 Machines Repaired . | . . Machines Dismantled . | . . Machines Sabotaged . | . . Overloaded Fab Kills . | . . Hacking | -11 -10 --------- Run | Yrd Mat Machines Accessed 2 | . 2 Terminals 2 | . 2 Fabricators . | . . Repair Stations . | . . Recycling Units . | . . Scanalyzers . | . . Garrison Access . | . . Total Hacks 4 | . 4 Successful 1 | . 1 Failed 3 | . 3 Catastrophic . | . . Database Lockouts . | . . Manual 4 | . 4 Terminals 4 | . 4 Fabricators . | . . Repair Stations . | . . Recycling Units . | . . Scanalyzers . | . . Garrison Access . | . . Terminal Hacks 1 | . 1 Robot Analysis 1 | . 1 Fabricator Hacks . | . . Repair Station Hacks . | . . Recycling Unit Hacks . | . . Scanalyzer . | . . Garrison Access Hacks . | . . Unauthorized Hacks . | . . Terminals . | . . Fabricators . | . . Repair Stations . | . . Recycling Units . | . . Scanalyzers . | . . Garrison Access . | . . Data Cores Recovered . | . . Used . | . . Hacking Detections 2 | . 2 Full Trace Events . | . . Feedback Events . | . . Feedback Blocked . | . . Robot Schematics Acquired . | . . Robots Built . | . . Authchips . | . . Time . | . . Total Robot Build Rating . | . . Part Schematics Acquired . | . . Parts Built . | . . Authchips . | . . Time . | . . Total Part Build Rating . | . . Parts Repaired . | . . Time . | . . Parts Recycled . | . . Recycled Matter . | . . Retrieved Matter . | . . Retrieved Components . | . . Parts Scanalyzed . | . . Part Schematics Acquired . | . . Parts Damaged . | . . Bothacking | -11 -10 ------------ Run | Yrd Mat Used RIF Installer . | . . Robots Hacked . | . . Non-combat . | . . Combat . | . . Robot Hacks Applied . | . . Relay Couplers Released . | . . Fabnet Peak Effective % . | . . Robots Rewired . | . . Allies Hacked . | . . Hacks Repelled . | . . Allies | -11 -10 -------- Run | Yrd Mat Total Allies . | . . Largest Group . | . . Highest-Rated Group . | . . Highest-Rated Ally . | . . Total Orders . | . . Ally Attacks . | . . Total Damage . | . . Kills . | . . Allies Corrupted . | . . Allies Melted . | . . Intel | -11 -10 ------- Run | Yrd Mat Active Infowar (turns) 60 | . 60 T.N.C. 60 | . 60 Robot Analysis Total 1 | . 1 Derelict Logs Recovered . | . . Drone Launches . | . . Drone Recoveries . | . . Exploration | -11 -10 ------------- Run | Yrd Mat Turns Passed 753 | 43 710 Spaces Moved 332 | 30 302 Core 14 | 13 1 Treads 318 | 17 301 Legs . | . . Wheels . | . . Hover . | . . Flight . | . . Fastest Speed 50 | 50 160 Average Speed 175 | 112 181 Slowest Speed 750 | 160 750 Overloaded Moves . | . . Propulsion Burnouts . | . . Robots Hopped . | . . Potential Cave-ins . | . . Cave-ins Triggered . | . . Exploration Rate (%) 25 | 2 48 Regions Visited 1 Branch Regions . Pre-discovered Areas . | . . Known Exits Taken . | . . Unknown Exits Taken 1 | 1 . Scrap Searched . | . . Spaces Dug . | . . Terrain Destroyed 29 | . 29 Melee . | . . Projectile . | . . AOE 29 | . 29 Terrain Rammed . | . . Walls Destroyed . | . . Machines Disabled . | . . Actions | -11 -10 --------- Run | Yrd Mat Total 421 | 39 382 Wait . | . . Move 331 | 29 302 Hop . | . . Pick Up 12 | 5 7 Fast Attach 1 | . 1 Attach 9 | 5 4 Detach 1 | . 1 Swap 4 | . 4 Drop . | . . Fire 63 | . 63 Melee . | . . Ram . | . . Kick . | . . Crush . | . . Escape Stasis . | . . Rewire . | . . Trap . | . . Miscellaneous . | . . Route ------- -11/Scrapyard -10/Materials (discovered 2 exits: [*Mat] / [*Min]) History --------- Turn | Location | Event 8 | -11/Scrapyard | Discovered new exit (range 16) 44 | -11/Scrapyard | Entered Materials 302 | -10/Materials | Build established: Mutant 411 | -10/Materials | Discovered new exit (range 7) 462 | -10/Materials | Discovered new exit (range 15) 723 | -10/Materials | Core integrity fell below 50% 751 | -10/Materials | Core integrity fell below 20% 754 | -10/Materials | Destroyed by G-47 Trooper with Particle Gun Last Messages --------------- 00692_ K-01 Serf collects debris. 00693_ Acquired Transport Network Coupler. 00695_ Acquired 69 matter. 00696_ K-01 Serf collects debris. 00700_ Acquired Lgt. Treads. 00701_ K-01 Serf collects debris. 00715_ System corrupted: FCS attempts to trigger EM Pulse Gun. 00715_ System corrupted: EM Pulse Gun misfires. 00715_ G-34 Mercenary destroyed. 00715_ Switching to secondary target: G-34 Mercenary. 00716_ EM Pulse Gun destroyed. 00718_ Lgt. Treads destroyed. 00729_ G-34 Mercenary destroyed. 00740_ R-06 Scavenger collects Ion Engine. 00740_ Terminal disabled. 00742_ Lgt. Assault Rifle destroyed. 00744_ Lgt. Treads destroyed. 00753_ K-01 Serf collects debris. Map ----- +----------------------------------------------------+ | ??????????????????????????????????????????? | | ??????#####???????????????????????????????? | | ?????##"""##??????????????????????????????? | | ????##"!!!"##?????????????????????????????? | | ????#"" ""#?????????????????????????????? | | ????# #?????????????????????????????? | | ????# < #?????????????????????????????? | | ????# #??########???????????????????? | | ????# #??# #???????????????????? | | ?????# #???# #???????????????????? | | ?###### #????# ! / #????????? ??????? | | # # ###### #????????? ????? | | # + # """" #????????? ????? | | # # + """" #????????? ?????? | | # # # """" #????????? ?????? | | # # # #????????? ?????? | | # # !% ################# ??????? | | # # % g! #??????? | | # + =% %%= #??????? | | # # ! [ m #??????? | | # ### % """ """ """ #??????? | | # ??# """ """ """ #??????? | | # ###+##k """ """ """ #??????? | | ####### ## #??????? | | ??????# !## k +??????? | | ??????# ## ^^ @############# #??????? | | ??????# ## ^ #??# # #??????? | | ??????# ## " " #??# """ # #??????? | | ??????# ## !#??# """ # #??????? | | ??????# ## ^ #??# """ + ######## | | ????####+### #??# # | | ????# !!! #??# # | | ????# < !!= #??# /= # | | ????# % !!= #??# != ############ | | ????#####=%#########??# #??????????? | | ????????#!!#??????????##########??????????? | | ????????# #??????????????????????????????? | | ????????# #??????????????????????????????? | | ????????# #??????????????????????????????? | | ????????# #??????????????????????????????? | | ????????# ##########?????????????????????? | | ????????# # #?????????????????????? | | ######??# # """ "" #?????????????????????? | | ? ??# # """ "" #???????????????#?????? | | #""" ?# # """ T" #???????????????# ???? | | #""" ?# # "" #???????????????# ?? | | #""" # # """ "" #???????????????# | | #""" # # """ #???????????????# """ | | #""" + + """ #???????????????# """ | | # # # ! ##??????????????# ""?? | +----------------------------------------------------+ Best States ------------- Heat Dissipation 25 Energy Generation 10 Energy Capacity 250 Matter Stores 300 Matter Capacity 300 Sight Range 16 Terrain Scan Density 10 Evasion (%) 50 Recoil Reduction 2 Item Schematics ----------------- None Robot Schematics ------------------ None Fabricated ------------ Nothing Repaired ---------- Nothing Alien Tech Used ----------------- None Achievements -------------- None Challenges ------------ None Game ------ Seed AntigravSigixMask Manual? 0 Play Time 00:09:47 Cumulative 19.9 hours Start 2025.07.11 @ 14:23:55 End 2025.07.11 @ 14:33:10 Sessions 1 Manual Loads 0 Difficulty Rogue Special Mode None Game No. 32 Rogue 32 Adventurer 0 Explorer 0 Win Type - Total 0 Types 0/0/0/0/0/0/0/0/0/0 Lore% 17 Gallery% 18 Achievement% 25 Wizard Run 0 Options --------- Layout 1 ASCII 0 Keyboard 0 Movement Mouse Keybinds 0 Fullscreen 1 Font 24/Smallcaps Map View 50x35 Zoom Use 0% Tactical HUD 1 Map Filters NONE Filters NONE Steam 1 RUN: 1bc530cb-37a5-421e-9d46-90139b964940